[Event "FIDE WY-U16 Olympiad 2022"]
[Site "Nakhchivan"]
[Date "2022.10.02"]
[Round "1.6"]
[White "Begmuratov, Khumoyun"]
[Black "Kiriella, K G T S D"]
[Result "1-0"]
[ECO "C00"]
[WhiteElo "2353"]
[BlackElo "1907"]
[Annotator "TA"]
[PlyCount "129"]
[EventDate "2022.10.02"]
[EventType "team-tourn"]
[EventCountry "AZE"]
[SourceTitle "playchess.com"]
[Source "ChessBase"]
[SourceQuality "1"]
[WhiteTeam "Uzbekistan"]
[BlackTeam "Sri Lanka"]
[WhiteTeamCountry "UZB"]
[BlackTeamCountry "SRI"]
[TimeControl "40/5400+30:1800+30"]

{[%evp 25,129,59,77,77,77,77,85,81,77,81,87,78,78,78,82,75,73,76,73,73,93,78,92,69,92,82,82,87,138,134,153,163,164,155,200,157,159,141,225,225,226,229,253,236,227,167,321,307,310,300,296,297,284,281,293,87,77,0,17,17,37,25,27,17,17,17,61,68,155,114,107,104,261,257,267,281,281,281,285,277,334,327,663,266,252,177,560,557,769,765,806,806,791,772,4566,4566,4566,4566,4566,4566,3718,3718,4566,4566,850,826]} 1. e4 {[%emt 0:00:03]} e6 {[%emt 0:00:05]} 2. d3 {[%emt 0:00:16]} d5 {[%emt 0:00:04]} 3. Nd2 {[%emt 0:00:21]} c5 {[%emt 0:00:05]} 4. Ngf3 {[%emt 0:00:26]} Nc6 {[%emt 0:00:39]} 5. g3 {[%emt 0:00:26]} Nf6 {[%emt 0:00:16]} 6. Bg2 {[%emt 0:00:16]} Be7 {[%emt 0:00:11]} 7. O-O {[%emt 0:00:15]} dxe4 {[%emt 0:00:20]} 8. dxe4 {[%emt 0:01:14]} e5 {[%emt 0:00:17]} 9. c3 {[%emt 0:00:55]} Be6 {[%emt 0:01:05]} 10. Ng5 {[%emt 0:03:38]} Bc8 {[%emt 0:05:18]} 11. Nc4 {[%emt 0:11:08]} Qxd1 {[%emt 0:07:14]} 12. Rxd1 {[%emt 0:00:11]} O-O {[%emt 0:00:51]} 13. Nf3 {[%emt 0:01:41]} Bg4 {[%emt 0:03:05] [#]} 14. h3 $146 {[%emt 0:03:33] C00: French: Unusual White 2nd moves.} ({Predecessor:} 14. Ne3 Rfd8 15. Re1 Be6 16. Nf5 Bf8 17. Bg5 Rd3 18. N3h4 Ne8 19. Bc1 Rad8 20. Ne3 Nc7 21. f4 f6 22. Nf3 {0-1 (47) De Rover,Y (2196)-Leeuwenburgh,E Leiden 2003}) 14... Bxf3 {[%emt 0:02:44]} 15. Bxf3 {[%emt 0:00:28][%cal Bg2f3,Bf3e2,Be2c4,Bc4d5][%mdl 32]} Rfd8 {[%emt 0:00:41]} 16. Re1 {[%emt 0:01:44] White is better.} Nd7 {[%emt 0:17:19]} 17. a4 {[%emt 0:04:27]} Nb6 {[%emt 0:02:19]} 18. Be2 {[%emt 0:00:57]} Nxc4 {[%emt 0:10:40]} 19. Bxc4 {[%emt 0:01:33]} Na5 {[%emt 0:00:07]} 20. Bd5 {[%emt 0:00:13]} Rac8 {[%emt 0:00:20]} 21. Be3 {[%emt 0:01:00]} b6 {[%emt 0:05:01]} 22. b3 {[%emt 0:01:22]} Kf8 {[%emt 0:01:58]} 23. Rab1 {[%emt 0:02:10]} Rc7 {[%emt 0:02:45]} 24. Rec1 {[%emt 0:02:31]} Nc6 {[%emt 0:06:17]} 25. Kf1 {[%emt 0:01:55]} h6 {[%emt 0:00:30]} 26. h4 {[%emt 0:00:23] Against Bg5} g5 {[%emt 0:04:27]} ({Black should try} 26... h5) 27. Ke2 $16 {[%emt 0:00:56]} f5 {[%emt 0:10:25][%cal Bf7f5,Bf5f4][%mdl 32]} 28. hxg5 {[%emt 0:01:16]} hxg5 {[%emt 0:00:04]} 29. Rh1 {[%emt 0:12:02][%cal Bc1h1,Bh1h6,Bh6g6][%mdl 32]} f4 {[%emt 0:02:47]} 30. Bd2 {[%emt 0:02:51] This bishop pair is nice.} Bf6 {[%emt 0:07:17]} 31. Rh6 {[%emt 0:00:53]} Ke7 {[%emt 0:00:50]} (31... Rd6 $16 32. Rg1 Rg7) 32. Rbh1 $18 {[%emt 0:01:08]} Rf8 {[%emt 0:00:50] [#]} 33. Rg6 $1 {[%emt 0:03:53]} Nb8 {[%emt 0:02:36]} 34. gxf4 {[%emt 0:00:45]} gxf4 {[%emt 0:01:21]} 35. Rh7+ {[%emt 0:01:16]} Kd6 $2 {[%emt 0:00:21]} (35... Kd8 36. Rh5 Re7) 36. Rhh6 {[%emt 0:00:07]} Nd7 {[%emt 0:00:22]} 37. Bc4 {[%emt 0:00:49]} Ke7 {[%emt 0:01:15]} 38. f3 {[%emt 0:01:05]} Rcc8 {[%emt 0:03:16]} 39. Bb5 {[%emt 0:01:31]} Rcd8 {[%emt 0:00:29]} 40. Rh7+ $2 {[%emt 0:00:30]} (40. Be1 $18 {and White stays clearly on top.}) 40... Rf7 $16 {[%emt 0:00:26]} 41. Rhh6 {[%emt 0:31:56] White has more active pieces.} (41. Rh2 $16) 41... Nf8 {[%emt 0:33:16]} 42. Rg4 {[%emt 0:00:15]} Rg7 {[%emt 0:00:00] [#] aiming for ...Rxg4.} 43. Rxg7+ {[%emt 0:00:00]} Bxg7 {[%emt 0:00:00]} 44. Rc6 {[%emt 0:00:00] Rc7+ is the strong threat.} Ne6 {[%emt 0:00:00] Against Rc7+} 45. Bc4 {[%emt 0:00:00]} Nf8 {[%emt 0:00:00]} 46. Be1 {[%emt 0:00:00] Black must now prevent Bh4+.} Rd6 {[%emt 0:00:00]} (46... Kd7 $14 47. Bb5 a6) 47. Rc8 {[%emt 0:00:00] Threatens to win with Ra8.} Bf6 {[%emt 0:00:00]} 48. Ra8 {[%emt 0:00:00]} a5 {[%emt 0:00:00] This move loses the game for Black.} (48... Rd7 $16 {was necessary.}) 49. b4 $18 {[%emt 0:00:00]} axb4 {[%emt 0:00:00]} 50. cxb4 {[%emt 0:00:00] Strongly threatening a5.} Rd4 {[%emt 0:00:00]} 51. Bd5 {[%emt 0:00:00]} cxb4 {[%emt 0:00:00]} 52. Bf2 {[%emt 0:00:00]} Rxd5 {[%emt 0:00:00]} 53. exd5 {[%emt 0:00:00][%mdl 4096] Endgame KRB-KBN} b3 $2 {[%emt 0:00:00]} (53... Nd7 54. Rc8 e4 55. fxe4 b3) 54. Kd1 {[%emt 0:00:00]} (54. Bxb6 $142 {And now Bc5+ would win.} Nd7 55. Bd8+ Kd6 56. Ra6+ Kxd5 57. Bxf6) 54... Nd7 {[%emt 0:00:00]} 55. Ra6 {[%emt 0:00:00]} (55. Kc1 e4 $16) 55... Kd6 $2 {[%emt 0:00:00]} (55... e4 {is tougher.}) 56. a5 {[%emt 0:00:00] White is clearly winning.} ({Weaker is} 56. Kc1 Kxd5 57. Bxb6 e4 $16) 56... Kxd5 {[%emt 0:00:00]} 57. Ra7 {[%emt 0:00:00]} ({Less strong is} 57. Kc1 bxa5 58. Rxa5+ Kc6 $11) 57... bxa5 {[%emt 0:03:24]} 58. Rxd7+ {[%emt 0:00:00]} Kc4 {[%emt 0:00:05]} 59. Ra7 {[%emt 0:00:00]} e4 {[%emt 0:03:35]} 60. fxe4 {[%emt 0:00:23][%cal Bf3e4,Be4e5,Be5e6][%mdl 32]} Bc3 {[%emt 0:02:33]} 61. e5 {[%emt 0:02:28]} Kd5 {[%emt 0:00:22]} 62. Rb7 {[%emt 0:02:11]} Bb4 {[%emt 0:00:11]} 63. Rb5+ {[%emt 0:00:07]} Kc6 {[%emt 0:00:59]} 64. Rb6+ {[%emt 0:00:06]} Kd5 {[%emt 0:00:25]} 65. e6 {[%emt 0:00:08] Weighted Error Value: White=0.30/Black=0.44} 1-0

[Event "FIDE WY-U16 Olympiad 2022"]
[Site "Nakhchivan"]
[Date "2022.10.02"]
[Round "1.6"]
[White "Navaratnam, Ishaan Quan Tze"]
[Black "Akin, Yagiz Cinar"]
[Result "0-1"]
[ECO "C50"]
[WhiteElo "1862"]
[BlackElo "2249"]
[Annotator "TA"]
[PlyCount "106"]
[EventDate "2022.10.02"]
[EventType "team-tourn"]
[EventCountry "AZE"]
[SourceTitle "playchess.com"]
[Source "ChessBase"]
[SourceQuality "1"]
[WhiteTeam "Malaysia"]
[BlackTeam "Turkey"]
[WhiteTeamCountry "MAS"]
[BlackTeamCountry "TUR"]
[TimeControl "40/5400+30:1800+30"]

{[%evp 11,106,14,43,35,44,32,42,33,40,41,37,33,39,27,32,12,14,5,13,5,22,0,0,-12,-9,-22,2,-47,-34,-80,-87,-83,-39,-97,-34,-108,-104,-108,-115,-118,-95,-95,-18,-37,-24,-173,-170,-197,-183,-185,-176,-168,-174,-210,-210,-208,-139,-129,-109,-117,-122,-117,-77,-83,-90,-116,-115,-316,-313,-294,-280,-538,-511,-975,-973,-966,-952,-952,-941,-931,-909,-5081,-4134,-5949,-5587,-29970,-29971,-29971,-29972,-29972,-29973,-29973,-29974,-29974,-29975,-4627,-4618]} 1. e4 {[%emt 0:00:03]} e5 {[%emt 0:00:08]} 2. Nf3 {[%emt 0:00:04]} Nc6 {[%emt 0:00:24]} 3. Bc4 {[%emt 0:00:29]} Nf6 {[%emt 0:05:06]} 4. d3 {[%emt 0:00:15]} Bc5 {[%emt 0:01:34]} 5. O-O {[%emt 0:00:14]} d6 {[%emt 0:00:13]} 6. c3 {[%emt 0:00:24]} Bg4 {[%emt 0:03:42]} 7. a4 {[%emt 0:01:37] Hoping for b4. C54: Giuoco Piano: 4 c3 Nf6, main lines with 5 d4 and 5 d3.} a6 {[%emt 0:04:58]} 8. Nbd2 {[%emt 0:02:29]} O-O {[%emt 0:05:11]} 9. h3 {[%emt 0:01:09] White is slightly better.} Be6 {[%emt 0:05:23]} 10. Bxe6 {[%emt 0:00:12]} fxe6 {[%emt 0:00:04]} 11. b4 {[%emt 0:07:18]} Ba7 {[%emt 0:01:59]} 12. Nc4 {[%emt 0:01:23] [#]} b5 $146 {[%emt 0:12:43]} ({Predecessor:} 12... Qe8 13. Bg5 Ne7 14. a5 h6 15. Bc1 Kh7 16. Re1 Ng6 17. Bd2 Rd8 18. Rc1 Rd7 {½-½ (25) Eldridge,M (2350)-Spanton,T ICCF email 2011}) 13. axb5 {[%emt 0:02:05]} axb5 {[%emt 0:00:12]} 14. Na5 {[%emt 0:00:40]} Ne7 {[%emt 0:08:29]} 15. Qe2 {[%emt 0:04:19]} Bb6 {[%emt 0:07:58]} 16. d4 {[%emt 0:04:34]} exd4 {[%emt 0:08:11]} 17. cxd4 {[%emt 0:01:37]} Qd7 {[%emt 0:05:30]} 18. Bg5 {[%emt 0:01:35]} Ng6 {[%emt 0:03:03]} (18... h6 $5 {[%cal Rh6g5]} 19. Bxf6 Rxf6 $11) 19. Rfd1 {[%emt 0:06:00]} (19. Qc2 $11) 19... h6 {[%emt 0:05:28]} 20. Bxf6 {[%emt 0:00:27]} (20. Bd2 $15) 20... Rxf6 $17 {[%emt 0:05:05]} 21. e5 {[%emt 0:01:08]} Rf5 {[%emt 0:05:24]} 22. Ra3 {[%emt 0:19:08]} (22. exd6 $15 Raf8 23. dxc7) 22... Raf8 {[%emt 0:02:08]} (22... dxe5 $17 23. dxe5 Qe8) 23. Qe4 {[%emt 0:02:33]} (23. Qc2 $15) 23... dxe5 {[%emt 0:02:12]} 24. Nc6 {[%emt 0:11:47][%cal Rc6e5] [#]} exd4 $1 {[%emt 0:01:35]} 25. Ncxd4 {[%emt 0:00:41]} R5f6 {[%emt 0:03:43][%cal Oe6e5] Threatens to win with ...e5!} 26. Rad3 {[%emt 0:01:47]} Qd5 {[%emt 0:02:00]} (26... Qe8 $17 27. R3d2 e5) 27. Qxd5 $1 $11 {[%emt 0:02:45]} exd5 {[%emt 0:00:03]} 28. Nxb5 {[%emt 0:00:12]} (28. R3d2 $1 $11) 28... Nf4 $19 {[%emt 0:00:02]} 29. Ra3 {[%emt 0:08:19] [#]} Nxh3+ $1 {[%emt 0:00:05][%mdl 512]} 30. gxh3 {[%emt 0:00:04] Rdd3 is the strong threat.} Rxf3 {[%emt 0:00:03]} 31. Rxf3 {[%emt 0:00:59]} Rxf3 {[%emt 0:00:04][%mdl 4096] Endgame KRB-KRN} 32. Rd2 {[%emt 0:00:20]} Rxh3 {[%emt 0:02:21]} 33. Rxd5 {[%emt 0:01:10]} Rf3 {[%emt 0:01:10]} 34. Rd2 {[%emt 0:01:06]} h5 {[%emt 0:00:34]} 35. Rc2 {[%emt 0:00:56]} Rf7 {[%emt 0:00:16]} 36. Kg2 {[%emt 0:00:45]} g5 {[%emt 0:00:29]} 37. f3 {[%emt 0:00:44]} Kg7 {[%emt 0:00:25]} 38. Rc6 {[%emt 0:00:05]} Rd7 {[%emt 0:00:46]} 39. Kg3 $2 {[%emt 0:01:11]} (39. Kh3 $17) 39... Be3 {[%emt 0:00:15]} 40. Kg2 {[%emt 0:05:26]} Bf4 {[%emt 0:00:05]} 41. Kg1 $2 {[%emt 0:30:30]} (41. Nc3) 41... h4 {[%emt 0:31:07][%cal Bh5h4,Bh4h3,Bh3h2][%mdl 32] aiming for ...h3.} 42. Kg2 {[%emt 0:00:33]} (42. Re6 $142 h3 43. Re1) 42... Rd2+ {[%emt 0:00:26]} 43. Kh3 {[%emt 0:00:37]} Rh2+ {[%emt 0:00:49]} 44. Kg4 {[%emt 0:00:06]} Rg2+ {[%emt 0:00:04]} 45. Kf5 {[%emt 0:01:26]} h3 {[%emt 0:00:17] And now ...h2 would win.} 46. Nxc7 {[%emt 0:01:12]} h2 {[%emt 0:00:00]} 47. Ne6+ {[%emt 0:00:00]} Kh7 {[%emt 0:00:00]} 48. Nxf4 {[%emt 0:00:00]} gxf4 {[%emt 0:00:00] KR-KR} 49. Rc7+ {[%emt 0:00:00]} Rg7 {[%emt 0:00:00]} 50. Rc1 {[%emt 0:00:00]} Rg1 {[%emt 0:00:00]} 51. Rc7+ {[%emt 0:00:00]} Kg8 {[%emt 0:00:00]} 52. Rc8+ {[%emt 0:00:00]} Kf7 {[%emt 0:00:00]} 53. Rc7+ {[%emt 0:00:00]} Ke8 {[%emt 0:00:00] Weighted Error Value: White=0.75/Black=0.11 (very precise)} 0-1

[Event "FIDE WY-U16 Olympiad 2022"]
[Site "Nakhchivan"]
[Date "2022.10.02"]
[Round "1.7"]
[White "Yavuz, Efe Metehan"]
[Black "Emran, Muhammad Emir Rasyid"]
[Result "1-0"]
[ECO "A35"]
[WhiteElo "2215"]
[BlackElo "1634"]
[Annotator "TA"]
[PlyCount "103"]
[EventDate "2022.10.02"]
[EventType "team-tourn"]
[EventCountry "AZE"]
[SourceTitle "playchess.com"]
[Source "ChessBase"]
[SourceQuality "1"]
[WhiteTeam "Turkey"]
[BlackTeam "Malaysia"]
[WhiteTeamCountry "TUR"]
[BlackTeamCountry "MAS"]
[TimeControl "40/5400+30:1800+30"]

{[%evp 14,102,20,12,107,129,114,133,114,96,117,117,274,282,692,686,1055,940,1259,1281,1263,1272,1271,1258,1155,685,637,510,510,421,417,412,448,329,322,330,321,295,358,358,357,350,378,375,370,308,791,780,1822,1306,1272,955,955,955,954,946,922,925,875,812,1352,1274,1406,1283,1377,1270,3202,2672,29985,29986,29986,29987,29987,29986,29986,29987,29988,29989,29989,29990,29992,29993,29993,29994,29994,29995,29997,29998,29998,29999,29999]} 1. Nf3 {[%emt 0:00:13]} c5 {[%emt 0:00:07]} 2. c4 {[%emt 0:01:25]} Nf6 {[%emt 0:01:59]} 3. Nc3 {[%emt 0:01:49]} Nc6 {[%emt 0:01:19]} 4. e3 {[%emt 0:01:52][%cal Be2e3,Be3d4,Bd4d5][%mdl 32]} g6 {[%emt 0:06:43]} 5. d4 {[%emt 0:00:37]} cxd4 {[%emt 0:00:18]} 6. exd4 {[%emt 0:00:10]} d5 {[%emt 0:00:10]} 7. cxd5 {[%emt 0:01:30]} Nxd5 {[%emt 0:00:06]} 8. Qb3 {[%emt 0:01:43]} Nb6 {[%emt 0:08:00] A35: Symmetrical English: 2 Nc3 Nc6 3 Nf3.} (8... e6 $11 {keeps the balance.}) 9. d5 $16 {[%emt 0:09:23]} Nb8 {[%emt 0:01:01]} 10. Bb5+ {[%emt 0:07:33]} Bd7 {[%emt 0:01:43] White is clearly better.} 11. O-O {[%emt 0:00:51] White is more active.} Bg7 {[%emt 0:00:36]} 12. Bg5 {[%emt 0:02:02][%cal Og5e7] [#] Hoping for Bxe7!} f6 $146 {[%emt 0:13:06] This move loses the game for Black.} (12... O-O $16) ({Predecessor:} 12... O-O 13. Rfe1 Bf6 14. Bxf6 exf6 15. Rad1 Bg4 16. Be2 N8d7 17. d6 Re8 18. Ng5 fxg5 19. Bxg4 {1-0 (34) Plischki,S (2440)-Roesemann,R (2248) Marianske Lazne 2014}) 13. d6 $18 {[%emt 0:03:28]} Nc6 {[%emt 0:18:57]} (13... e6) 14. dxe7 {[%emt 0:02:09]} Qc8 {[%emt 0:05:16]} 15. Ne4 {[%emt 0:01:38]} Kxe7 {[%emt 0:06:23]} 16. Qa3+ {[%emt 0:00:25]} Kd8 {[%emt 0:00:35]} 17. Nxf6 {[%emt 0:07:19]} Bxf6 {[%emt 0:15:11]} 18. Bxf6+ {[%emt 0:00:01]} Kc7 {[%emt 0:00:20]} 19. Nd4 {[%emt 0:03:31] [#] Qg3+ would kill now.} Qf8 {[%emt 0:07:40]} 20. Qg3+ {[%emt 0:00:46]} Qd6 {[%emt 0:01:06]} 21. Qxd6+ {[%emt 0:00:45]} Kxd6 {[%emt 0:00:04]} 22. Bxh8 {[%emt 0:00:55] A strong pair of Bishops.} Nxd4 {[%emt 0:00:55]} 23. Bxd4 {[%emt 0:01:08]} Bxb5 {[%emt 0:00:03]} 24. Rfe1 {[%emt 0:00:22]} Nd5 {[%emt 0:01:05]} 25. Be5+ {[%emt 0:00:45]} Ke6 {[%emt 0:01:38]} 26. Rad1 {[%emt 0:00:17]} Bc6 {[%emt 0:00:12]} 27. b4 {[%emt 0:04:00]} a6 {[%emt 0:00:38]} 28. a4 {[%emt 0:01:34][%cal Ba2a4,Ba4a5][%mdl 32]} b5 {[%emt 0:02:38]} 29. a5 {[%emt 0:02:10]} Kf5 $2 {[%emt 0:00:38]} (29... Re8 30. Bd4+ Kf7 31. Rxe8 Bxe8) 30. Bb2 {[%emt 0:01:58] Strongly threatening Re5+.} Kg5 {[%emt 0:05:16]} 31. Re5+ {[%emt 0:00:09]} Kh6 {[%emt 0:00:06]} 32. Rd4 {[%emt 0:01:26]} Kg7 {[%emt 0:01:18]} 33. Rdxd5 {[%emt 0:00:14]} Bxd5 {[%emt 0:00:22]} 34. Rxd5+ {[%emt 0:00:02][%mdl 4096] Endgame KRB-KR} Kf7 {[%emt 0:00:06]} 35. Bd4 {[%emt 0:01:15]} Ke6 {[%emt 0:00:19]} 36. Re5+ {[%emt 0:00:01]} Kd6 {[%emt 0:00:05]} 37. f4 {[%emt 0:00:08]} Rd8 {[%emt 0:01:31]} 38. Kf2 {[%emt 0:00:08]} Kc6 {[%emt 0:00:15]} 39. Ke3 {[%emt 0:00:08] Black must now prevent Ke4.} Rd6 {[%emt 0:00:19]} 40. Ke4 {[%emt 0:00:12] Intending Re7 and mate.} Kd7 {[%emt 0:00:38] Prevents Re7+.} 41. Rd5 {[%emt 0:30:05] White mates.} Ke6 {[%emt 0:30:06]} 42. Rxd6+ {[%emt 0:00:02]} Kxd6 {[%emt 0:00:03] KB-KP} 43. Be5+ {[%emt 0:00:10]} Kc6 {[%emt 0:00:44]} 44. g4 {[%emt 0:00:02]} h6 {[%emt 0:00:26]} 45. f5 {[%emt 0:00:03]} gxf5+ {[%emt 0:00:05]} 46. gxf5 {[%emt 0:00:01] KB-K3P} h5 {[%emt 0:00:08]} 47. f6 {[%emt 0:00:10]} Kd7 {[%emt 0:00:03]} 48. Kd5 {[%emt 0:00:04]} h4 {[%emt 0:00:07]} 49. Bd6 {[%emt 0:00:11]} Kc8 {[%emt 0:00:11]} 50. Kc6 {[%emt 0:00:06]} h3 {[%emt 0:00:07]} 51. f7 {[%emt 0:00:10][%cal Rf7f8]} Kd8 {[%emt 0:00:01]} 52. f8=Q# {[%emt 0:00:13] Weighted Error Value: White=0.58/Black=0.51} 1-0

[Event "FIDE WY-U16 Olympiad 2022"]
[Site "Nakhchivan"]
[Date "2022.10.02"]
[Round "1.7"]
[White "Nabil Nazar, Mohamed"]
[Black "Suyarov, Mukhammadzokhid"]
[Result "0-1"]
[ECO "A40"]
[WhiteElo "1861"]
[BlackElo "2159"]
[Annotator "TA"]
[PlyCount "76"]
[EventDate "2022.10.02"]
[EventType "team-tourn"]
[EventCountry "AZE"]
[SourceTitle "playchess.com"]
[Source "ChessBase"]
[SourceQuality "1"]
[WhiteTeam "Sri Lanka"]
[BlackTeam "Uzbekistan"]
[WhiteTeamCountry "SRI"]
[BlackTeamCountry "UZB"]
[TimeControl "40/5400+30:1800+30"]

{[%evp 13,76,-16,6,0,8,0,0,0,7,0,0,0,0,0,17,-8,-3,-10,-13,-104,-106,-97,-102,-105,-101,-99,-90,-118,-110,-146,-144,-158,-149,-153,-154,-174,-173,-564,-560,-559,-566,-566,-566,-565,-563,-555,-503,-518,-504,-685,-683,-689,-682,-747,-747,-747,-747,-825,-802,-814,-773,-750,-750,-5381,-2017]} 1. d4 {[%emt 0:00:05]} e6 {[%emt 0:00:18]} 2. Bf4 {[%emt 0:00:28]} Nf6 {[%emt 0:00:32]} 3. e3 {[%emt 0:00:07]} b6 {[%emt 0:00:33]} 4. Nf3 {[%emt 0:00:10]} Bb7 {[%emt 0:00:33]} 5. Nbd2 {[%emt 0:00:09]} Be7 {[%emt 0:00:50]} 6. Bd3 {[%emt 0:00:37]} c5 {[%emt 0:01:14]} 7. c3 {[%emt 0:00:51]} O-O {[%emt 0:00:55] 7...cxd4 gains popularity.} 8. Qc2 {[%emt 0:04:16] A47: 1 d4 Nf6 2 Nf3 b6: Torre, London and Colle Systems.} Ba6 {[%emt 0:06:54]} 9. O-O {[%emt 0:08:45]} Bxd3 {[%emt 0:01:24]} 10. Qxd3 {[%emt 0:01:44] The position is equal.} Nc6 {[%emt 0:01:22] [#]} 11. h3 $146 {[%emt 0:03:29]} (11. Ne5 {with more complications.} Qc8 12. a4 Nh5 13. Nxc6 Qxc6 14. Nf3) ({Predecessor:} 11. e4 cxd4 12. Nxd4 Nxd4 13. cxd4 d5 14. e5 Nd7 15. Qg3 Kh8 16. Nf3 Rc8 17. Rac1 {0-1 (38) Hadlich,W (1854)-Beilfuss,W (2148) Radebeul 2019}) 11... d5 {[%emt 0:02:10]} 12. Rad1 {[%emt 0:03:54]} Rc8 {[%emt 0:05:28]} 13. Rfe1 {[%emt 0:03:34]} Qd7 {[%emt 0:03:04]} 14. Ne5 {[%emt 0:18:16]} Qb7 {[%emt 0:00:24]} 15. a3 {[%emt 0:01:51]} Rfd8 {[%emt 0:02:14]} 16. Bg5 {[%emt 0:08:29] [#]} (16. Nxc6 $11 Rxc6 17. Qe2) 16... Nxe5 $1 $17 {[%emt 0:04:18] White is on the road to losing.} 17. dxe5 {[%emt 0:00:11] [#]} Nd7 {[%emt 0:00:06][%csl LRe5,LRg5][%cal Bf6d7,Bd7c5,Bc5d3][%mdl 32]} ({Of course not} 17... c4 18. Qc2 Ne8 19. Nf3 $14) 18. Bf4 {[%emt 0:02:30]} c4 {[%emt 0:01:35]} 19. Qc2 {[%emt 0:01:55]} Nc5 {[%emt 0:00:35]} 20. Re2 {[%emt 0:01:35]} b5 {[%emt 0:01:37]} 21. Kh2 {[%emt 0:11:56]} a5 {[%emt 0:02:23]} 22. Rb1 {[%emt 0:05:30]} b4 {[%emt 0:05:06]} 23. axb4 {[%emt 0:05:42]} axb4 {[%emt 0:00:13]} 24. cxb4 {[%emt 0:00:50]} Nd3 {[%emt 0:01:02]} 25. b3 $2 {[%emt 0:00:44]} (25. b5) 25... d4 $19 {[%emt 0:00:19] Black is clearly winning.} 26. bxc4 {[%emt 0:01:54]} Nxf4 {[%emt 0:00:10]} 27. exf4 {[%emt 0:00:39] Threatens to win with Qb3.} d3 {[%emt 0:00:09]} 28. Qd1 {[%emt 0:00:31] Hoping for Re4.} dxe2 {[%emt 0:00:10]} 29. Qxe2 {[%emt 0:00:02]} Bxb4 {[%emt 0:02:34]} 30. Ne4 {[%emt 0:01:31]} Qe7 {[%emt 0:00:12] Against Nd6} 31. Qa2 {[%emt 0:03:25]} Rd4 {[%emt 0:04:50][%csl LRc4,LRe4][%cal Bd8d4,Bd4c4,Bc4c6][%mdl 32]} 32. Qa6 {[%emt 0:01:14]} Rdxc4 {[%emt 0:01:17]} 33. Nd6 {[%emt 0:00:54]} Bxd6 {[%emt 0:01:21]} 34. exd6 {[%emt 0:00:03]} Qd8 {[%emt 0:01:51]} 35. Rb7 {[%emt 0:01:27]} R4c6 {[%emt 0:02:03]} 36. Qa7 {[%emt 0:01:23]} Ra8 {[%emt 0:00:13]} 37. Rd7 {[%emt 0:05:11]} Qc8 {[%emt 0:00:11]} 38. Rc7 {[%emt 0:01:12]} Rxa7 {[%emt 0:00:07] Weighted Error Value: White=0.42/Black=0.04 (flawless)} 0-1

[Event "FIDE WY-U16 Olympiad 2022"]
[Site "Nakhchivan"]
[Date "2022.10.02"]
[Round "1.8"]
[White "Omonova, Umida"]
[Black "Gamage, Desandhi Dhihansa"]
[Result "1-0"]
[ECO "B51"]
[WhiteElo "2196"]
[BlackElo "1624"]
[Annotator "TA"]
[PlyCount "59"]
[EventDate "2022.10.02"]
[EventType "team-tourn"]
[EventCountry "AZE"]
[SourceTitle "playchess.com"]
[Source "ChessBase"]
[SourceQuality "1"]
[WhiteTeam "Uzbekistan"]
[BlackTeam "Sri Lanka"]
[WhiteTeamCountry "UZB"]
[BlackTeamCountry "SRI"]
[TimeControl "40/5400+30:1800+30"]

{[%evp 10,59,4,13,14,4,0,9,8,0,22,-12,-20,-32,-32,-64,0,-23,-27,-56,-41,-68,-49,-52,-8,-21,-16,-10,0,0,0,0,66,75,132,130,164,141,210,212,210,143,175,172,167,167,319,306,397,379,370,331]} 1. e4 {[%emt 0:00:07]} c5 {[%emt 0:00:08]} 2. Nf3 {[%emt 0:00:10]} d6 {[%emt 0:00:05]} 3. Bb5+ {[%emt 0:00:44]} Nd7 {[%emt 0:00:05]} 4. O-O {[%emt 0:00:52]} a6 {[%emt 0:01:27]} 5. Bxd7+ {[%emt 0:01:42]} Bxd7 {[%emt 0:00:18]} 6. Re1 {[%emt 0:01:19]} Bg4 {[%emt 0:13:13] B51: Sicilian: Moscow Variation (3 Bb5+) without 3...Bd7.} 7. h3 {[%emt 0:03:02]} Bh5 {[%emt 0:02:08]} 8. c3 {[%emt 0:07:40]} e6 {[%emt 0:10:16] The position is equal.} 9. d3 {[%emt 0:10:22][%cal Bd2d3,Bd3d4][%mdl 32]} Be7 {[%emt 0:02:23]} 10. Nbd2 {[%emt 0:04:05]} Nf6 {[%emt 0:01:05] [#]} 11. Qb3 $146 {[%emt 0:05:04]} ({Predecessor:} 11. Nf1 O-O 12. Ng3 Bg6 13. Nh4 d5 14. Nxg6 hxg6 15. Qe2 dxe4 16. dxe4 e5 17. Bg5 {1-0 (32) Martinez Alcantara,J (2591)-Bernadskiy,V (2617) Chess.com INT 2022}) 11... Qc7 {[%emt 0:02:48]} 12. a4 {[%emt 0:04:59]} b6 {[%emt 0:07:05]} ({Better is} 12... Rd8 $15) 13. d4 {[%emt 0:02:18]} (13. g4 $5 {[%cal Rg4h5]} Bg6 14. Nc4 $11) 13... O-O {[%emt 0:05:40]} 14. Nh2 {[%emt 0:16:13]} Bg6 {[%emt 0:18:52]} 15. Nhf3 {[%emt 0:01:53]} Qb7 {[%emt 0:07:20][%cal Rf6e4]} 16. e5 {[%emt 0:04:07]} Nd5 {[%emt 0:05:54]} 17. Nc4 {[%emt 0:06:33]} dxe5 {[%emt 0:02:20]} 18. Ncxe5 {[%emt 0:02:47]} Bf5 {[%emt 0:02:26]} 19. Bd2 {[%emt 0:01:49]} Rad8 {[%emt 0:05:14]} 20. Rad1 {[%emt 0:01:47]} Nc7 {[%emt 0:01:57]} ({Black should try} 20... Nf6 $11) 21. Be3 $14 {[%emt 0:01:01] Strongly threatening dxc5. White is more active.} cxd4 {[%emt 0:05:53]} (21... f6 $142) 22. Nxd4 $16 {[%emt 0:00:50]} Be4 {[%emt 0:02:39]} 23. f3 {[%emt 0:01:11]} Bd6 {[%emt 0:01:59]} (23... Bf6 $16 {was necessary.}) 24. Nc4 $18 {[%emt 0:01:25]} ({Not} 24. fxe4 Bxe5 25. Bf2 Bf6 $14) 24... Bd5 {[%emt 0:00:31]} 25. Qxb6 {[%emt 0:01:40]} Bg3 {[%emt 0:00:32] [#]} 26. Qxb7 {[%emt 0:00:32]} Bxb7 {[%emt 0:00:04] A strong pair of Bishops.} 27. Bf2 {[%emt 0:00:07]} Bf4 {[%emt 0:00:35]} (27... Bxf2+ 28. Kxf2 Ba8) 28. Na5 {[%emt 0:00:57]} Bd5 {[%emt 0:00:47]} 29. c4 {[%emt 0:02:02]} Ba8 {[%emt 0:00:06]} 30. Ndc6 {[%emt 0:00:14] Weighted Error Value: White=0.11 (very precise) /Black=0.32} 1-0